bitfinex/quotes_ETHUSD_20250123
["timestamp","ask_amount","ask_price","bid_price","bid_amount"]
[1737645666422,0.25,3241.7,3239.4,0.5457]
[1737645666423,0.8045,3241.6,3240.9,0.55]
[1737645666724,0.8045,3242.6,3241.0,0.02977689]
[1737645667110,0.8703,3243.3,3241.1,3.0]
[1737645667293,0.8703,3243.3,3242.3,3.08422]
[1737645667493,0.8703,3243.3,3241.7,3.0]
[1737645667494,3.08312,3243.5,3242.5,0.55]
[1737645667698,1.51257769,3243.7,3242.4,0.02945939]
[1737645667878,1.51257769,3243.7,3241.2,3.08519]
[1737645668086,1.51257769,3243.7,3242.5,0.02929705]
[1737645668413,1.51257769,3243.7,3242.5,0.55]
[1737645668613,1.51257769,3243.7,3243.0,3.55]
[1737645668828,1.51257769,3243.7,3242.6,0.64298423]
[1737645668997,1.51257769,3243.7,3243.1,3.1127146]
[1737645669346,1.51257769,3243.7,3243.2,7.12e-06]
[1737645669347,0.36892928,3243.6,3243.2,7.12e-06]
[1737645669656,1.51257769,3243.7,3242.2,3.08431]
[1737645669800,1.51257769,3243.7,3243.2,0.22688567]
[1737645670004,1.51257769,3243.7,3243.5,3.08304]
[1737645670226,1.32350547,3243.7,3243.5,3.08304]
[1737645670548,4.4e-07,3243.9,3243.8,0.55]
[1737645670747,4e-08,3244.1,3243.9,3.0827]
[1737645670899,0.0548992,3244.5,3244.2,3.08242]
[1737645671099,1.5959596,3245.3,3244.2,3.08242]
[1737645671100,1.5959596,3245.3,3245.0,3.08166]
[1737645671341,1.5959596,3245.7,3245.4,3.08128]
[1737645671641,1.5959596,3246.7,3245.8,3.0809]
[1737645671798,1.5959596,3246.7,3245.8,6.0809]
[1737645672005,8.6e-06,3245.9,3245.8,3.0809]
[1737645672201,1.5959596,3246.7,3245.4,0.60580051]
[1737645672202,1.5959596,3246.7,3246.0,3.08071]
[1737645672440,1.49595959,3246.7,3246.6,3.08014]
[1737645672638,9.2e-06,3247.3,3247.0,3.07976]
[1737645672899,9.2e-06,3247.3,3246.9,3.07983]
[1737645673103,9.2e-06,3247.3,3247.2,3.0]
[1737645673469,1.5700596,3247.6,3247.5,3.07929]
[1737645673661,0.36892928,3248.4,3245.5,0.15531706]
[1737645673803,0.165689,3249.2,3240.8,26.01]
[1737645673804,0.36892928,3248.5,3247.3,0.61785495]
[1737645673999,0.36892928,3248.4,3247.4,0.55]
[1737645674204,0.36892928,3247.7,3247.5,3.07924]
[1737645674445,0.36892928,3247.7,3247.0,0.22688567]
[1737645674446,0.36892928,3248.0,3247.0,0.22688567]
[1737645674650,0.36892928,3248.1,3247.1,3.07967]
[1737645674939,3.0779,3249.0,3247.0,0.22688567]
[1737645674940,0.36892928,3247.4,3247.0,0.22688567]
[1737645675149,0.36892928,3246.9,3245.6,0.25]
[1737645675302,0.36892928,3247.4,3246.2,0.55]
[1737645675503,0.36892928,3246.3,3246.2,0.55]
[1737645675743,0.36892928,3246.3,3245.9,3.08075]
[1737645675914,0.36892928,3245.1,3244.4,2.25]
[1737645676115,0.36892928,3244.8,3244.7,3.08188]
[1737645676321,0.8155,3246.3,3243.1,5.30237]
[1737645676322,0.8155,3246.3,3243.1,2.219]
[1737645676556,0.25,3247.5,3244.4,3.58222072]
[1737645676864,0.8261,3247.8,3246.4,3.08028]
[1737645677041,0.8261,3247.8,3245.2,0.49999072]
[1737645677245,0.165689,3249.2,3244.6,3.08203]
[1737645677246,0.8261,3249.1,3245.1,0.49999072]
[1737645677416,0.8261,3249.1,3245.6,2.25]
[1737645677753,0.8261,3249.1,3245.4,0.55]
[1737645677754,0.8261,3249.1,3247.2,3.07953]
[1737645678044,0.8261,3249.1,3245.9,3.0808]
[1737645678045,0.8261,3249.1,3247.5,3.07925]
[1737645678206,0.8261,3249.1,3246.4,0.62585586]
[1737645678207,0.8261,3249.1,3246.2,2.25]
[1737645678407,0.8261,3249.1,3247.6,3.07915]
[1737645678635,3.90389,3249.1,3247.1,3.0]
[1737645678808,3.90389,3249.1,3246.2,2.25]
[1737645678809,0.5,3248.4,3246.2,2.25]
[1737645679140,0.5,3248.4,3246.1,0.61366986]
[1737645679141,5.05652944,3247.2,3245.7,0.22388605]
[1737645679350,0.8261,3246.8,3245.7,0.22388605]
[1737645679518,3.08076,3246.0,3245.7,0.22388605]
[1737645679720,1.3261,3246.8,3245.7,0.22388605]
[1737645679924,3.0,3246.1,3244.3,1.232063]
[1737645680142,0.8261,3246.0,3244.3,1.232063]
[1737645680318,0.8261,3246.0,3242.2,3.58423072]
[1737645680518,0.8261,3246.0,3243.1,1.1211936]
[1737645680720,0.8261,3246.0,3244.2,3.08238]
[1737645681055,5.05652944,3245.8,3242.9,0.62975889]
[1737645681256,0.8261,3245.6,3242.8,3.08373]
[1737645681459,5.05652944,3245.1,3243.2,0.22350112]
[1737645681654,0.8261,3245.0,3243.2,0.22350112]
[1737645681853,3.08175,3244.9,3243.2,0.22350112]
[1737645682155,5.05652944,3244.5,3243.2,0.22350112]
[1737645682453,3.08233,3244.3,3243.2,0.22350112]
[1737645682612,3.08321,3243.4,3243.2,0.22350112]
[1737645682815,0.7536,3243.6,3241.1,3.08532]
[1737645683020,0.7536,3243.6,3240.1,5.26437448]
[1737645683334,3.0,3243.4,3240.7,3.08569]
[1737645683539,0.7536,3243.6,3240.2,3.08622]
[1737645683738,3.08308,3243.5,3240.8,3.08558]
[1737645683963,3.08357,3243.0,3240.2,0.22378048]
[1737645684258,3.0848,3241.7,3240.2,0.22378048]
[1737645684422,3.0857,3240.8,3240.2,0.22378048]
[1737645684932,3.08605,3240.4,3240.2,0.22378048]
[1737645685133,3.90405,3240.4,3240.2,0.22378048]
[1737645685331,3.90405,3240.4,3237.2,2.73255452]
[1737645685332,0.818,3240.4,3237.2,0.48255452]
[1737645685536,3.08693,3239.5,3237.6,3.08866]
[1737645685762,3.08751,3238.9,3237.3,3.08898]
[1737645685921,3.5864,3240.1,3236.7,3.08949]
[1737645686120,0.7995,3239.6,3237.0,3.08926]
[1737645686325,3.08751,3238.9,3236.4,3.08985]
[1737645686520,0.7995,3239.6,3237.0,3.0]
[1737645686772,3.08728,3239.1,3237.7,3.08859]
[1737645686918,3.08702,3239.4,3237.4,3.08886]
[1737645687123,0.7995,3239.6,3236.8,3.39279806]
[1737645687323,0.7995,3239.6,3237.6,3.08867]
[1737645687565,0.7995,3239.6,3236.8,3.14279806]
[1737645687718,3.08766,3238.7,3237.2,3.08906]
[1737645687923,0.7995,3239.6,3237.8,3.08851]
[1737645687924,3.08713,3239.3,3237.8,3.08851]
[1737645688159,0.7995,3239.6,3237.1,3.08918]
[1737645688360,0.5,3241.5,3239.3,3.08707]
[1737645688361,0.7674,3240.5,3239.3,3.08707]
[1737645688664,0.7674,3240.5,3239.6,3.0]
[1737645688851,3.08518,3241.3,3239.4,35.0]
[1737645689024,0.7674,3241.4,3239.5,3.08686]
[1737645689224,3.08518,3241.3,3237.8,8.87]
[1737645689423,0.7674,3241.4,3239.3,3.08699]
[1737645689624,3.08618,3240.3,3238.9,3.08738]
[1737645689872,3.08618,3240.3,3237.6,3.08865]
[1737645689873,3.08532,3241.2,3239.7,3.0867]
[1737645690024,3.08532,3241.2,3237.6,9.12]
[1737645690025,0.8077,3240.6,3236.8,8.87]
[1737645690365,3.08622,3240.2,3238.0,3.0883]
[1737645690565,3.08638,3240.1,3238.6,3.0877]
[1737645690866,3.8939,3240.3,3236.2,1.88368205]
[1737645690867,1.3077,3240.3,3236.6,3.08959]
[1737645691094,0.8077,3240.3,3236.6,3.08966]
[1737645691238,3.08658,3239.9,3236.6,3.08966]
[1737645691448,3.08632,3240.1,3238.3,3.088]
[1737645691796,0.8077,3240.3,3239.1,3.08726]
[1737645691945,0.8077,3240.3,3238.9,0.55]
[1737645692284,3.89346,3242.0,3238.7,3.08765]
[1737645692475,3.89345,3242.0,3240.4,3.08603]
[1737645692673,3.08471,3241.8,3238.9,3.0]
[1737645692840,3.89341,3242.0,3239.6,3.0868]
[1737645693041,0.8089,3242.0,3239.6,3.0868]
[1737645693376,0.8089,3242.0,3241.0,3.08543]
[1737645693577,0.8089,3242.0,3239.0,0.61252091]
[1737645693578,3.08318,3243.4,3241.6,0.55]
[1737645693759,0.8217,3243.3,3241.6,3.55]
[1737645693948,3.90504,3243.3,3241.6,3.55]
[1737645694287,0.8217,3243.3,3241.3,3.08509]
[1737645694440,3.08371,3242.9,3241.4,3.0]
[1737645694643,0.8217,3243.3,3242.1,3.08433]
[1737645694843,0.8217,3243.3,3242.0,0.55]
[1737645695074,0.8217,3243.3,3242.3,3.0]
[1737645695272,0.8145,3244.5,3242.6,0.55]
[1737645695479,0.8145,3244.5,3241.4,0.55]
[1737645695690,3.08272,3243.9,3242.1,3.0]
[1737645696000,0.8145,3244.5,3241.1,35.0]
[1737645696001,0.7634,3243.4,3241.4,3.08502]
[1737645696203,0.7634,3243.4,3241.2,3.08526]
[1737645696494,0.7634,3243.4,3241.9,3.08459]
[1737645696651,0.7634,3243.4,3242.0,3.0]
[1737645696850,0.7634,3243.4,3241.2,3.08523]
[1737645697046,0.55,3243.3,3241.1,3.08527]
[1737645697245,0.55,3243.3,3239.0,0.65591377]
[1737645697246,0.8072,3241.9,3239.2,3.0871]
[1737645697443,0.8072,3241.9,3238.8,4.22]
[1737645697676,0.8072,3241.9,3240.4,3.08602]
[1737645697898,0.8072,3241.9,3239.7,3.08664]
[1737645698049,3.08515,3241.4,3239.4,3.08689]
[1737645698395,0.8072,3241.9,3240.4,3.08601]
[1737645698619,0.8072,3241.9,3239.0,3.14279806]
[1737645698620,0.8072,3241.9,3240.3,3.08604]
[1737645698832,0.8072,3241.9,3239.2,6.17436]
[1737645699118,0.8072,3241.9,3239.7,3.0]
[1737645699289,3.08481,3241.7,3240.0,3.0864]
[1737645699489,0.8072,3241.9,3241.0,3.08537]
[1737645699689,0.7818,3243.1,3241.7,3.08476]
[1737645699893,0.7818,3243.1,3241.9,3.08457]
[1737645700079,0.7818,3243.1,3240.6,3.55]
[1737645700278,0.7818,3243.1,3239.5,3.08686]
[1737645700477,0.7818,3243.1,3241.1,3.08528]
[1737645700478,3.08356,3243.0,3241.1,3.08528]
[1737645700685,0.7818,3243.1,3240.1,3.0]
[1737645700686,3.86527,3243.1,3240.1,3.0]
[1737645700880,3.86527,3243.1,3239.9,0.61935029]
[1737645700881,0.7818,3243.1,3240.6,9.25752]
[1737645701133,0.7818,3243.1,3240.6,3.55]
[1737645701435,0.7818,3243.1,3242.5,3.084]
[1737645701578,0.7818,3243.1,3240.2,35.0]
[1737645701783,3.08412,3242.5,3240.5,3.08587]
[1737645702019,3.08467,3241.9,3239.1,8.87]
[1737645702186,0.763,3242.4,3240.2,3.08619]
[1737645702393,3.0846,3242.0,3240.3,3.08611]
[1737645702601,3.08433,3242.2,3239.9,3.08644]
[1737645702602,0.763,3241.5,3239.9,3.08644]
[1737645702798,3.08528,3241.2,3239.6,3.08677]
[1737645703120,3.08565,3240.8,3239.2,0.28063962]
[1737645703422,0.763,3240.9,3239.2,0.28063962]
[1737645703724,3.0,3239.8,3239.2,0.28063962]
[1737645704024,3.08594,3240.5,3239.2,0.28063962]
[1737645704208,3.08689,3239.6,3239.2,0.28063962]
[1737645704523,3.0,3240.1,3239.0,3.14279806]
[1737645704524,3.08603,3240.4,3239.0,3.14279806]
[1737645704723,3.0,3239.4,3239.0,3.14279806]
[1737645704880,6.08701,3239.4,3239.0,3.14279806]
[1737645705077,6.08727,3239.1,3239.0,2.30949806]
[1737645705283,3.08843,3237.9,3236.7,1.25846255]
[1737645705505,3.0,3238.6,3236.7,1.25846255]
[1737645705506,3.0887,3237.6,3236.7,1.25846255]
[1737645705924,3.0,3238.0,3236.7,1.25846255]
[1737645706128,3.0,3237.7,3236.7,1.25846255]
[1737645706331,3.0,3237.9,3236.7,1.25846255]
[1737645706542,0.25,3238.9,3236.8,0.28210241]
[1737645706682,3.089,3237.3,3236.8,0.28210241]
[1737645706887,6.89507,3236.9,3236.8,0.28210241]
[1737645707090,0.8057,3236.9,3236.8,0.28210241]
[1737645707602,0.8057,3236.9,3236.7,1.25846255]
[1737645708033,0.8057,3236.9,3236.2,0.165689]
[1737645708230,0.8057,3237.6,3236.3,0.55]
[1737645708382,0.8057,3237.6,3236.2,0.165689]
[1737645708783,3.89448,3237.6,3236.2,0.165689]
[1737645709035,0.8057,3237.6,3236.3,0.55]
[1737645709340,0.8057,3237.6,3236.2,0.165689]
[1737645709485,0.7797,3238.3,3236.2,0.165689]
[1737645709925,3.86775,3238.3,3236.7,3.08954]
[1737645710118,0.7797,3238.3,3236.5,0.55]
[1737645710298,3.0871,3239.3,3237.6,0.55]
[1737645710497,0.7626,3239.3,3238.0,3.08832]
[1737645710715,0.7626,3239.3,3236.8,3.08947]
[1737645710930,0.7626,3239.3,3236.2,0.165689]
[1737645710931,0.7626,3239.3,3237.1,3.08917]
[1737645711135,3.0,3238.6,3237.1,3.08913]
[1737645711335,3.0,3238.8,3237.2,0.55]
[1737645711632,3.0,3238.8,3236.5,3.0]
[1737645711633,3.84969,3239.3,3237.7,3.08858]
[1737645711937,0.7626,3239.3,3237.8,0.55]
[1737645712139,0.7626,3239.3,3238.3,3.08802]
[1737645712344,0.7626,3240.4,3237.9,0.7973]
[1737645712926,0.7626,3240.4,3239.0,3.0873]
[1737645713107,0.7626,3240.4,3237.9,0.7973]
[1737645713438,6.08623,3240.2,3238.6,3.08769]
[1737645713613,0.7626,3240.4,3238.6,3.08769]
[1737645713614,0.7626,3240.4,3238.7,0.55]
[1737645713793,0.7626,3240.4,3239.4,0.55]
[1737645713995,0.7897,3241.1,3239.1,3.08727]
[1737645714218,0.7897,3241.1,3239.8,3.08659]
[1737645714423,0.7897,3241.1,3238.9,0.7879]
[1737645714733,0.7897,3241.1,3240.2,0.55]
[1737645715092,0.7897,3241.1,3239.1,3.08723]
[1737645715093,0.7897,3241.1,3238.1,3.70306943]
[1737645715435,0.7897,3241.1,3240.0,0.55]
[1737645715591,0.7897,3241.1,3239.1,3.0]
[1737645715793,0.7897,3241.1,3239.9,0.55]
[1737645716444,0.7897,3241.1,3239.9,3.63642]
[1737645716593,0.7897,3241.1,3239.5,3.0868]
[1737645716798,0.7897,3241.1,3238.3,2.87411294]
[1737645717140,0.7897,3241.1,3239.8,3.08655]
[1737645717342,0.8212,3241.7,3240.7,3.08573]
[1737645717587,0.8212,3241.7,3240.3,0.55]
[1737645717737,0.8212,3242.6,3241.0,3.08544]
[1737645717944,0.8212,3242.6,3240.8,3.08565]
[1737645718181,0.8212,3242.6,3241.6,3.08488]
[1737645718381,0.8212,3242.6,3240.2,0.8223]
[1737645718540,0.44157529,3242.9,3240.1,3.08629]
[1737645718744,3.0,3241.8,3240.2,3.08619]
[1737645718945,0.8106,3242.5,3239.5,0.8129]
[1737645719186,3.08516,3241.4,3239.5,0.8129]
[1737645719353,0.8106,3242.2,3239.7,3.08665]
[1737645719541,0.8106,3242.2,3239.8,3.08655]
[1737645719740,3.08532,3241.2,3239.7,3.0]
[1737645719968,3.08543,3241.1,3239.5,3.89972]
[1737645720247,0.7632,3241.1,3239.6,3.0]
[1737645720468,0.7632,3241.1,3239.7,3.08661]
[1737645720783,0.7632,3241.1,3239.5,0.8129]
[1737645720988,0.7632,3241.1,3239.6,3.08677]
[1737645721208,0.7632,3241.1,3240.1,3.08632]
[1737645721362,0.7632,3241.1,3240.0,3.55]
[1737645721565,6.08462,3241.9,3240.3,0.55]
[1737645721780,0.8031,3241.8,3240.3,3.08612]
[1737645721975,3.08491,3241.6,3239.9,0.7796]
[1737645722160,0.8031,3241.8,3239.9,0.7796]
[1737645722374,0.8031,3244.0,3240.6,0.55]
[1737645722584,0.8031,3243.8,3241.1,0.55]
[1737645722796,0.8031,3243.8,3241.5,0.55]
[1737645722963,0.8031,3243.8,3242.5,3.08402]
[1737645723166,0.8031,3243.8,3242.4,0.55]
[1737645723390,0.8031,3243.8,3242.6,3.08385]
[1737645723563,0.8031,3243.8,3242.5,0.55]
[1737645723782,0.8031,3243.8,3242.8,0.55]
[1737645723990,0.8031,3243.8,3242.4,0.8208]
[1737645724320,3.0,3243.5,3241.8,0.7879]
[1737645724507,3.08347,3243.1,3241.5,3.0849]
[1737645724814,3.0,3243.2,3241.3,3.08518]
[1737645725117,3.08374,3242.9,3241.2,0.7879]
[1737645725316,0.7737,3242.5,3241.2,0.7879]
[1737645725614,0.7737,3242.5,3241.4,3.08508]
[1737645725817,0.7831,3243.9,3242.1,3.08441]
[1737645726016,0.7831,3243.9,3242.0,0.7702]
[1737645726017,3.08319,3243.4,3242.0,0.7702]
[1737645726314,3.08319,3243.4,3240.7,0.7659]
[1737645726315,0.7553,3242.6,3240.7,0.7659]
[1737645726486,3.83924,3242.6,3240.8,3.08565]
[1737645726814,0.7553,3242.6,3240.8,3.08565]
[1737645727127,3.08461,3241.9,3240.3,3.08605]
[1737645727275,3.0,3242.7,3240.0,3.87388]
[1737645727276,3.91709,3241.8,3240.0,0.7875]
[1737645727622,3.0,3241.7,3240.0,0.7875]
[1737645727820,0.8323,3241.8,3240.0,0.7875]
[1737645727979,0.8323,3241.8,3239.5,3.92990153]
[1737645728177,0.8323,3241.8,3237.9,11.34]
[1737645728178,0.7755,3241.2,3240.0,3.14240153]
[1737645728378,3.08632,3240.1,3240.0,3.14240153]
[1737645728692,3.86182,3240.1,3240.0,3.14240153]
[1737645728894,6.86182,3240.1,3240.0,3.14240153]
[1737645729411,6.86182,3240.1,3238.2,3.0881]
[1737645729412,3.8723,3239.7,3237.1,3.0891]
[1737645729737,0.7856,3238.5,3236.9,3.89378]
[1737645729972,0.7856,3238.5,3237.0,3.08925]
[1737645730141,3.08796,3238.4,3237.0,3.08925]
[1737645730300,0.7856,3238.5,3237.2,3.08907]
[1737645730504,0.7856,3238.5,3236.9,3.89385]
[1737645730698,3.0,3238.2,3236.2,0.165689]
[1737645730912,0.7851,3237.2,3236.2,0.165689]
[1737645731524,0.25,3239.0,3236.2,0.165689]
[1737645731525,0.8121,3237.9,3236.2,0.165689]
[1737645732138,3.8121,3237.9,3236.2,0.165689]
[1737645732342,0.8121,3237.9,3236.9,3.08937]
[1737645732542,0.8121,3237.9,3236.6,0.55]
[1737645732713,0.8121,3237.9,3237.1,3.08918]
[1737645733227,0.8121,3237.9,3236.8,3.08939]
[1737645733402,0.8121,3237.9,3236.9,3.08936]
[1737645733597,0.8121,3237.9,3236.2,0.165689]
[1737645733598,3.8121,3237.9,3236.2,0.165689]
[1737645733797,3.8121,3237.9,3236.3,3.08994]
[1737645733798,0.8121,3237.9,3236.3,3.08994]
[1737645734034,0.8121,3237.9,3236.4,0.55]
[1737645734305,0.8121,3237.9,3236.2,0.165689]
[1737645734501,3.08869,3237.7,3236.2,0.165689]
[1737645734734,3.90053,3237.9,3236.2,0.165689]
[1737645734735,0.8121,3237.9,3236.2,0.165689]
[1737645734920,3.08861,3237.7,3236.2,0.165689]
[1737645735106,6.08879,3237.6,3236.2,0.165689]
[1737645735450,0.8121,3237.9,3236.3,0.55]
[1737645735740,0.8121,3237.9,3236.2,0.165689]
[1737645735928,0.8121,3237.9,3236.2,3.255699]
[1737645736130,0.8121,3237.9,3236.2,0.165689]
[1737645736528,3.08871,3237.6,3236.2,0.165689]
[1737645736731,3.0,3237.5,3236.2,0.165689]
[1737645736973,3.90054,3237.9,3236.2,0.165689]
[1737645737168,0.8121,3237.9,3236.2,0.165689]
[1737645738174,0.8121,3237.9,3236.3,0.55]
[1737645738340,3.0,3237.7,3236.2,0.165689]
[1737645738682,3.08934,3237.0,3236.2,0.165689]
[1737645738886,3.08979,3236.5,3236.2,0.165689]
[1737645739039,0.8173,3236.4,3236.2,0.165689]
[1737645740377,3.55,3236.3,3233.7,1.91285663]
[1737645740577,3.89545,3235.0,3234.6,1.236033]
[1737645740737,0.8042,3235.0,3233.7,1.91285663]
[1737645740933,3.8042,3235.0,3233.7,1.91285663]
[1737645741141,3.09233,3233.8,3233.7,1.91285663]
[1737645741479,0.7919,3233.9,3233.7,1.91285663]
[1737645741646,3.09233,3233.8,3233.7,1.91285663]
[1737645741847,6.09233,3233.8,3233.7,1.07955663]
[1737645742046,6.09233,3233.8,3233.7,0.70844053]
[1737645742281,6.09233,3233.8,3232.1,1.27321465]
[1737645742282,3.8803,3233.0,3232.1,1.27321465]
[1737645742504,3.0422,3232.9,3232.1,1.27321465]
[1737645742635,6.09386,3232.2,3232.1,1.27321465]
[1737645742982,6.13606,3232.2,3232.1,1.27321465]
[1737645743186,3.0422,3232.2,3229.6,3.09634]
[1737645743337,3.0422,3232.2,3228.0,3.09788]
[1737645743338,3.09469,3231.4,3229.5,3.09644]
[1737645743539,3.09485,3231.2,3229.5,3.09644]
[1737645743739,0.6676,3231.1,3229.2,3.0]
[1737645743937,0.6676,3231.1,3229.4,3.09647]
[1737645744249,0.6676,3231.1,3228.8,0.7552]
[1737645744437,0.6676,3231.1,3229.9,3.09603]
[1737645744637,0.6676,3231.1,3230.6,3.09531]
[1737645744836,0.7098,3232.5,3230.5,3.09549]
[1737645745040,0.7098,3232.5,3231.6,3.09436]
[1737645745282,3.09209,3234.1,3231.4,6.09462]
[1737645745283,0.61985911,3233.4,3231.4,6.09462]
[1737645745467,0.7098,3233.3,3231.5,0.55]
[1737645745667,0.7098,3233.3,3231.4,3.0]
[1737645745866,0.7098,3233.3,3232.3,3.09371]
[1737645746037,0.7098,3234.3,3232.4,35.0]
[1737645746236,0.7098,3234.3,3233.8,3.09232]
[1737645746458,0.7098,3235.0,3233.8,3.09232]
[1737645746636,0.7098,3235.0,3232.7,3.09338]
[1737645746637,0.7098,3235.0,3233.7,0.7889]
[1737645746856,1.86389521,3236.5,3233.7,0.7889]
[1737645746857,0.7098,3236.0,3234.1,0.55]
[1737645747191,3.80004,3236.0,3233.9,35.0]
[1737645747336,0.7098,3236.0,3234.1,3.09198]
[1737645747540,3.09084,3235.4,3233.7,0.7889]
[1737645747853,0.7098,3236.0,3234.4,3.09169]
[1737645748052,0.7098,3236.0,3233.7,0.7889]
[1737645748255,3.80003,3236.0,3233.7,0.7889]
[1737645748465,0.7098,3236.0,3233.7,0.7889]
[1737645748756,3.0905,3235.8,3234.1,3.09204]
[1737645748980,0.7098,3236.0,3234.3,3.09184]
[1737645748981,3.80007,3236.0,3234.3,3.09184]
[1737645749136,3.09052,3235.7,3233.7,0.7889]
[1737645749336,0.7098,3236.0,3233.8,0.55]
[1737645749668,0.7098,3236.0,3234.5,3.09166]
[1737645749855,3.09048,3235.8,3234.4,3.09173]
[1737645750038,3.0,3235.4,3233.7,0.7889]
[1737645750235,3.0,3235.6,3233.7,0.7889]
[1737645750544,1.86389521,3236.5,3233.7,0.7889]
[1737645750545,3.08996,3236.3,3233.9,3.09224]
[1737645750848,1.86389521,3236.5,3233.9,0.55]
[1737645750849,0.7098,3236.2,3233.9,0.55]
[1737645751047,3.0,3236.0,3233.7,3.88125]
[1737645751267,0.7098,3235.3,3233.7,3.88124]
[1737645751580,3.09156,3234.7,3233.1,3.90725]
[1737645751743,6.09121,3235.0,3233.2,0.55]
[1737645751941,6.09121,3235.0,3233.1,3.90725]
[1737645751942,3.0,3234.8,3233.1,3.90725]
[1737645752139,3.08945,3236.9,3234.6,3.09156]
[1737645752377,3.08945,3236.9,3233.6,3.0]
[1737645752378,0.7098,3235.9,3234.3,3.09182]
[1737645752534,0.7098,3235.9,3234.1,3.09199]
[1737645752738,0.7098,3235.9,3233.3,3.0]
[1737645752933,0.7098,3235.9,3234.6,3.09147]
[1737645753176,0.7098,3235.9,3234.9,3.09121]
[1737645753338,0.7098,3235.9,3233.8,3.55]
[1737645753339,0.7098,3235.9,3234.8,3.09137]
[1737645753538,3.80019,3235.9,3234.5,3.09165]
[1737645753764,3.80019,3235.9,3233.7,3.0924]
[1737645753765,0.7098,3235.9,3233.7,3.0924]
[1737645753968,0.7098,3235.9,3233.7,3.09235]
[1737645754153,0.7098,3235.9,3234.8,3.09133]
[1737645754354,0.7098,3235.9,3234.6,3.09157]
[1737645754580,0.7098,3235.9,3234.3,0.55]
[1737645754786,0.7098,3236.5,3234.9,3.09121]
[1737645754993,0.7098,3237.4,3235.9,0.55]
[1737645755252,3.08986,3236.4,3234.6,3.09155]
[1737645755391,3.0904,3235.9,3234.4,0.7719]
[1737645755593,3.09081,3235.4,3233.9,3.90871]
[1737645755793,3.09044,3235.8,3234.1,3.09202]
[1737645756092,3.0,3236.1,3233.9,0.80520114]
[1737645756439,3.09025,3236.0,3234.0,3.09214]
[1737645756745,6.09022,3236.1,3234.5,3.09166]
[1737645756898,0.7098,3236.3,3234.0,0.55]
[1737645756899,3.79977,3236.3,3234.0,0.55]
[1737645757093,0.7098,3236.3,3234.9,3.09128]
[1737645757529,0.7098,3236.3,3233.9,3.80520114]
[1737645757732,0.7098,3236.3,3235.2,3.09097]
[1737645757945,0.7098,3236.3,3233.9,0.80520114]
[1737645758141,0.7098,3236.3,3235.4,3.09079]
[1737645758298,0.7098,3236.3,3235.0,0.55]
[1737645758638,0.7098,3236.3,3235.6,3.0906]
[1737645758882,0.7211,3236.9,3236.1,3.09012]
[1737645759215,0.7211,3236.9,3236.2,3.08996]
[1737645759417,0.7211,3236.9,3235.3,0.7971]
[1737645759644,0.7211,3236.9,3234.4,0.25]
[1737645759958,0.7211,3236.9,3234.3,0.60462915]
[1737645759959,3.7211,3236.9,3234.3,0.60462915]
[1737645760124,0.7211,3236.9,3234.7,3.0]
[1737645760327,3.08843,3237.9,3235.3,0.55]
[1737645760662,0.7211,3238.4,3235.5,3.0907]
[1737645760663,0.7211,3237.2,3235.5,3.0907]
[1737645760816,3.81026,3237.2,3235.2,0.8151]
[1737645761153,3.81019,3237.2,3235.2,0.8151]
[1737645761459,0.55,3237.1,3234.3,0.60462915]
[1737645761661,0.55,3237.1,3233.2,0.49999072]
[1737645761662,3.81104,3236.3,3234.8,3.09132]
[1737645761835,3.7211,3236.3,3234.9,3.0912]
[1737645762027,0.7211,3236.3,3235.3,3.09088]
[1737645762415,0.7211,3236.3,3234.5,0.55]
[1737645762623,0.7211,3237.2,3234.9,0.55]
[1737645762821,0.7211,3237.2,3236.7,3.08955]
[1737645763130,0.7211,3237.7,3237.1,3.08913]
[1737645763458,0.7211,3237.7,3237.1,3.08912]
[1737645763661,0.7211,3237.7,3235.9,3.8181]
[1737645763662,0.7211,3237.7,3235.9,0.8181]
[1737645763830,0.7211,3237.7,3235.6,0.63350289]
[1737645764031,0.7211,3237.7,3235.7,3.09048]
[1737645764218,0.7211,3238.8,3236.3,1.3389]
[1737645764422,0.6191627,3238.7,3237.1,3.0891]
[1737645764641,0.6191627,3238.7,3237.2,3.08908]
[1737645764845,3.0,3238.6,3237.1,3.0891]
[1737645765159,3.08784,3238.5,3236.3,0.7889]
[1737645765364,0.7211,3237.7,3236.0,3.09015]
[1737645765566,0.7211,3237.7,3235.7,0.7889]
[1737645765747,3.0,3237.1,3235.4,3.09079]
[1737645766056,0.7211,3237.7,3236.5,3.08974]
[1737645766258,0.7211,3237.7,3237.1,3.08917]
[1737645766467,0.7211,3238.3,3237.5,3.08871]
[1737645766671,0.7211,3238.3,3236.7,0.7889]
[1737645766827,0.7211,3238.3,3236.9,3.08936]
[1737645767030,0.7211,3238.3,3237.6,3.08867]
[1737645767230,0.7211,3238.3,3237.3,3.08891]
[1737645767430,0.7211,3238.3,3237.0,3.0892]
[1737645767731,0.7211,3238.3,3237.1,0.55]
[1737645767939,0.7211,3238.3,3236.2,3.09001]
[1737645768133,0.7211,3238.3,3236.6,0.55]
[1737645768472,0.7211,3238.3,3236.5,3.08975]
[1737645768473,0.7211,3239.1,3237.7,3.08859]
[1737645768632,0.7211,3239.1,3237.0,3.0]
[1737645768831,0.7211,3239.1,3237.6,3.08864]
[1737645769032,0.7211,3239.1,3237.1,0.55]